bitfinex/quotes_SOLUSD_20240716
["timestamp","ask_amount","ask_price","bid_price","bid_amount"]
[1721104268117,16.91,158.14,158.08,0.8089959]
[1721104268332,18.1787546,158.13,158.08,17.7189959]
[1721104269315,1.2687546,158.14,158.08,17.7189959]
[1721104269524,21.2687546,158.17,158.11,16.91]
[1721104269706,16.91,158.16,158.12,45.0]
[1721104271016,21.2687546,158.17,158.13,1.26405079]
[1721104271017,18.1787546,158.17,158.13,1.26405079]
[1721104271497,1.2687546,158.17,158.13,1.26405079]
[1721104271695,18.1787546,158.17,158.13,1.26405079]
[1721104272721,16.218,158.18,158.13,1.26405079]
[1721104272929,16.218,158.18,158.14,16.91]
[1721104273405,16.218,158.18,158.13,1.26389093]
[1721104273406,33.128,158.18,158.13,18.17389093]
[1721104273589,33.128,158.18,158.14,45.0]
[1721104273789,34.3967546,158.18,158.14,45.0]
[1721104274126,1.2687546,158.17,158.14,45.0]
[1721104274430,1.2687546,158.17,158.13,16.91]
[1721104275002,24.5010546,158.17,158.12,16.91]
[1721104275200,18.1787546,158.17,158.13,45.0]
[1721104277000,16.91,158.16,158.08,0.8089959]
[1721104277201,16.91,158.16,158.11,16.91]
[1721104277427,18.1787546,158.17,158.12,61.91]
[1721104277625,16.91,158.17,158.13,0.66790306]
[1721104277919,16.91,158.17,158.13,1.26457273]
[1721104278128,16.91,158.17,158.12,61.91]
[1721104278300,18.1787546,158.17,158.12,61.91]
[1721104278714,18.1787546,158.17,158.09,1.26457267]
[1721104278715,16.91,158.16,158.11,16.91]
[1721104278910,16.91,158.15,158.08,0.8089959]
[1721104279114,16.91,158.13,158.08,17.7189959]
[1721104280305,16.91,158.11,158.08,0.8089959]
[1721104280717,16.91,158.12,158.08,0.8089959]
[1721104281512,16.91,158.12,158.08,45.8089959]
[1721104282726,1.2687546,158.14,158.08,62.7189959]
[1721104282937,16.91,158.13,158.08,62.7189959]
[1721104283620,10.0,158.22,158.08,62.7189959]
[1721104283621,15.6414,158.19,158.12,16.91]
[1721104283827,15.6414,158.19,158.16,16.91]
[1721104284133,15.6414,158.19,158.17,45.0]
[1721104284308,18.1787546,158.21,158.17,45.0]
[1721104284513,1.2687546,158.22,158.17,61.91]
[1721104284731,18.1787546,158.22,158.17,61.91]
[1721104286232,1.2687546,158.22,158.17,45.0]
[1721104286440,21.2687546,158.22,158.17,45.0]
[1721104286605,27.5890546,158.22,158.17,45.0]
[1721104287625,21.2687546,158.22,158.17,45.0]
[1721104288110,1.2687546,158.22,158.17,45.0]
[1721104288540,7.5890546,158.22,158.17,45.0]
[1721104288924,7.5890546,158.22,158.12,33.81]
[1721104289122,7.5890546,158.22,158.13,45.0]
[1721104289526,7.5890546,158.22,158.14,1.26432159]
[1721104289825,7.5890546,158.22,158.13,45.0]
[1721104290737,1.2687546,158.22,158.13,45.0]
[1721104291745,1.2687546,158.22,158.14,1.02601199]
[1721104292740,7.5890546,158.22,158.14,1.02601199]
[1721104293230,1.2687546,158.22,158.14,1.02601199]
[1721104293853,1.2687546,158.22,158.13,45.0]
[1721104295128,7.5890546,158.22,158.13,45.0]
[1721104299154,1.2687546,158.22,158.13,45.0]
[1721104300551,1.2687546,158.22,158.14,1.2643206]
[1721104303647,1.2687546,158.22,158.09,52.8]
[1721104304145,6.3211,158.2,158.09,33.81]
[1721104304351,1.2687546,158.19,158.09,33.81]
[1721104305053,1.2687546,158.19,158.1,45.0]
[1721104305552,22.9298,158.18,158.08,0.8089959]
[1721104305756,1.2687546,158.17,158.08,0.8089959]
[1721104306330,16.92,158.15,158.1,16.92]
[1721104306734,16.92,158.15,158.11,45.0]
[1721104307451,16.92,158.14,158.11,45.0]
[1721104307659,18.1887546,158.14,158.11,45.0]
[1721104307962,16.92,158.14,158.1,45.0]
[1721104308932,16.92,158.11,158.08,0.8089959]
[1721104309344,18.1887546,158.12,158.08,0.8089959]
[1721104309655,1.2687546,158.12,158.08,0.8089959]
[1721104309950,18.1887546,158.12,158.08,0.8089959]
[1721104311166,1.2687546,158.12,158.08,0.8089959]
[1721104311453,17.6589546,158.13,158.08,0.8089959]
[1721104311632,34.5789546,158.13,158.08,62.7289959]
[1721104312156,34.5789546,158.13,158.08,45.8089959]
[1721104312454,16.92,158.12,158.08,45.8089959]
[1721104313025,16.92,158.12,158.08,0.8089959]
[1721104313754,16.92,158.12,158.03,1.261925]
[1721104313955,16.92,158.12,158.07,16.92]
[1721104314953,16.92,158.12,158.04,1.26180015]
[1721104315153,1.2687546,158.11,158.07,16.92]
[1721104315343,18.1887546,158.11,158.06,16.92]
[1721104315548,18.1887546,158.11,158.07,45.0]
[1721104316257,16.92,158.11,158.07,45.0]
[1721104316555,18.1887546,158.12,158.07,61.92]
[1721104317959,16.92,158.11,158.07,45.0]
[1721104319945,16.92,158.1,158.07,45.0]
[1721104320135,16.92,158.1,158.06,45.0]
[1721104321650,16.92,158.09,158.06,45.0]
[1721104321853,16.92,158.09,158.05,45.0]
[1721104322553,16.92,158.1,158.05,61.92]
[1721104323331,16.92,158.09,158.05,45.0]
[1721104323542,1.2687546,158.11,158.05,45.0]
[1721104323742,16.92,158.09,158.05,45.0]
[1721104328434,16.92,158.1,158.05,61.92]
[1721104329076,16.92,158.09,158.05,45.0]
[1721104331042,18.1887546,158.08,158.05,45.0]
[1721104331462,16.92,158.08,158.04,45.0]
[1721104332565,16.92,158.09,158.04,61.92]
[1721104333761,16.92,158.09,158.04,45.0]
[1721104335071,18.1887546,158.1,158.04,45.0]
[1721104335372,16.92,158.1,158.04,45.0]
[1721104335840,16.92,158.1,158.05,0.65861186]
[1721104336463,16.92,158.1,158.04,45.0]
[1721104336664,16.92,158.09,158.04,45.0]
[1721104336866,1.2687546,158.08,158.04,45.0]
[1721104337163,1.2687546,158.09,158.04,45.0]
[1721104337344,18.1887546,158.09,158.04,45.0]
[1721104338753,6.3243,158.12,158.04,45.0]
[1721104338948,1.2687546,158.11,158.06,16.92]
[1721104339148,1.2687546,158.11,158.04,45.0]
[1721104339149,1.2687546,158.11,158.07,62.36838932]
[1721104339358,1.2687546,158.11,158.07,16.92]
[1721104339850,18.1887546,158.11,158.06,16.92]
[1721104340052,18.1887546,158.11,158.07,46.26490408]
[1721104340453,16.92,158.09,158.0,40.6638]
[1721104340669,18.1887546,158.09,158.04,16.92]
[1721104340965,18.1887546,158.09,158.05,17.25743135]
[1721104340966,16.92,158.09,158.05,17.25743135]
[1721104341151,16.92,158.1,158.05,17.25743135]
[1721104341359,18.1887546,158.11,158.06,18.18519297]
[1721104341558,18.1887546,158.11,158.06,16.92]
[1721104341942,18.1887546,158.1,158.04,16.92]
[1721104342142,18.1887546,158.1,158.05,45.0]
[1721104343561,16.92,158.09,158.05,45.0]
[1721104344274,18.1887546,158.1,158.05,61.92]
[1721104344666,18.1887546,158.1,158.06,1.11970401]
[1721104345268,1.2687546,158.1,158.06,18.03970401]
[1721104347085,1.2687546,158.1,158.06,1.11970401]
[1721104347260,18.1887546,158.11,158.06,1.11970401]
[1721104348062,18.1887546,158.11,158.05,61.92]
[1721104348063,7.5938546,158.1,158.05,45.0]
[1721104348388,18.1887546,158.1,158.05,61.92]
[1721104348559,7.5934546,158.11,158.06,1.26259239]
[1721104348760,16.92,158.1,158.06,1.26259239]
[1721104348955,16.92,158.1,158.05,45.0]
[1721104349156,1.2687546,158.11,158.06,1.26511656]
[1721104349456,83.4877,158.16,158.1,16.92]
[1721104349457,1.2687546,158.15,158.1,16.92]
[1721104349662,6.3215,158.19,158.12,16.92]
[1721104349870,6.3215,158.19,158.13,46.26454156]
[1721104349871,1.2687546,158.18,158.13,46.26454156]
[1721104350075,16.92,158.17,158.13,46.26454156]
[1721104352891,16.92,158.14,158.09,1.26457878]
[1721104353067,16.92,158.14,158.09,18.18457878]
[1721104353379,7.5914546,158.16,158.1,16.92]
[1721104353380,23.2432,158.15,158.1,16.92]
[1721104353686,25.8552,158.21,158.07,6.0390592]
[1721104353687,24.5122546,158.14,158.07,6.0390592]
[1721104353984,24.5122546,158.14,158.09,16.92]
[1721104354156,18.1887546,158.14,158.07,6.0390592]
[1721104354359,18.1887546,158.14,158.09,16.92]
[1721104354761,18.1887546,158.14,158.07,6.0390592]
[1721104354762,16.92,158.12,158.07,6.0390592]
[1721104354966,18.1887546,158.11,158.06,16.92]
[1721104355165,1.2687546,158.1,158.06,16.92]
[1721104355362,1.2687546,158.1,158.03,7.72743184]
[1721104355363,18.1887546,158.1,158.05,16.92]
[1721104355988,16.92,158.09,158.03,7.72743184]
[1721104356183,1.2687546,158.08,158.04,16.92]
[1721104356391,18.1887546,158.08,158.03,7.72743184]
[1721104356584,18.1887546,158.08,158.03,16.92]
[1721104358063,18.1887546,158.08,158.02,28.7598592]
[1721104358064,1.2687546,158.08,158.02,28.7598592]
[1721104358271,16.92,158.09,158.04,16.92]
[1721104358483,1.2687546,158.08,158.04,16.92]
[1721104359075,1.2687546,158.08,158.02,28.7598592]
[1721104359076,18.1887546,158.08,158.02,28.7598592]
[1721104359283,18.1887546,158.08,158.03,61.92]
[1721104360183,18.1887546,158.08,158.02,6.0390592]
[1721104360381,18.1887546,158.08,158.03,16.92]
[1721104361075,18.1887546,158.08,158.04,1.26548035]
[1721104361480,18.1887546,158.08,158.03,18.18536147]
[1721104361690,18.1887546,158.08,158.03,63.18536147]
[1721104362677,16.92,158.06,158.02,6.0390592]
[1721104362882,1.2687546,158.05,158.01,16.92]
[1721104363289,1.2687546,158.05,157.99,7.72743184]
[1721104363496,16.92,158.06,158.01,16.92]
[1721104363497,1.2687546,158.04,158.01,16.92]
[1721104363692,1.2687546,158.04,158.0,16.92]
[1721104363879,1.2687546,158.04,157.99,7.72743184]
[1721104364080,1.2687546,158.04,158.0,16.92]
[1721104365699,1.2687546,158.07,158.01,16.92]
[1721104365887,16.92,158.06,158.01,16.92]
[1721104366090,1.2687546,158.05,158.01,16.92]
[1721104366293,1.2687546,158.04,157.99,7.72743184]
[1721104366596,1.2687546,158.04,158.0,61.92]
[1721104367603,1.2687546,158.07,158.01,18.18563448]
[1721104367805,16.92,158.06,158.02,45.0]
[1721104367997,18.1887546,158.07,158.02,61.92]
[1721104368505,1.2687546,158.07,158.02,61.92]
[1721104368680,1.2687546,158.06,158.02,61.92]
[1721104369575,38.1887546,158.07,158.02,61.92]
[1721104370107,16.92,158.06,158.02,45.0]
[1721104370488,16.92,158.06,157.99,7.72743184]
[1721104370489,1.2687546,158.05,157.99,7.72743184]
[1721104370785,1.2687546,158.05,158.0,1.26559126]
[1721104371297,1.2687546,158.05,158.01,16.92]
[1721104372408,18.1887546,158.05,158.0,18.18559126]
[1721104373487,18.1887546,158.05,158.0,1.26559126]
[1721104373809,16.92,158.04,158.0,45.0]
[1721104374100,1.2687546,158.03,158.0,45.0]
[1721104375801,1.2687546,158.03,157.99,16.92]
[1721104376098,16.92,158.04,157.99,16.92]
[1721104376295,18.1887546,158.03,157.97,6.0390592]
[1721104376503,1.2687546,158.03,157.98,61.92]
[1721104376707,16.92,158.03,157.98,61.92]
[1721104377384,16.92,158.04,157.99,16.92]
[1721104377584,1.2687546,158.03,157.99,16.92]
[1721104377996,1.2687546,158.03,158.0,16.92]
[1721104378307,16.92,158.05,158.0,16.92]
[1721104378504,1.2687546,158.04,158.0,16.92]
[1721104378702,16.92,158.05,158.0,16.92]
[1721104379001,1.2687546,158.04,158.0,16.92]
[1721104379710,18.1887546,158.04,157.99,16.92]
[1721104380797,1.2687546,158.04,158.0,16.92]
[1721104381308,18.1887546,158.04,157.99,16.92]
[1721104381520,18.1887546,158.04,158.0,45.0]
[1721104382418,18.1887546,158.04,157.99,16.92]
[1721104382419,1.2687546,158.04,157.97,6.0390592]
[1721104382607,1.2687546,158.03,157.98,45.0]
[1721104382786,16.92,158.02,157.98,45.0]
[1721104382983,1.2687546,158.01,157.98,45.0]
[1721104383188,18.1887546,158.02,157.98,45.0]
[1721104383412,1.2687546,158.02,157.98,61.92]
[1721104384114,1.2687546,158.05,158.01,16.92]
[1721104384287,16.2548,158.07,158.03,16.92]
[1721104384605,7.4960546,158.1,158.05,16.92]
[1721104384606,24.4160546,158.1,158.05,16.92]
[1721104384790,16.92,158.09,158.04,18.18537978]
[1721104385196,7.4960546,158.1,158.01,1.26529186]
[1721104385197,18.1887546,158.08,158.01,1.26529186]
[1721104385484,18.1887546,158.08,158.03,16.92]
[1721104385906,1.2687546,158.08,158.03,16.92]
[1721104386110,1.2687546,158.07,158.03,16.92]
[1721104386420,16.92,158.06,158.0,45.0]
[1721104386584,1.2687546,158.05,158.01,16.92]
[1721104387190,1.2687546,158.05,158.0,45.0]
[1721104387394,18.1887546,158.05,157.99,45.0]
[1721104387795,18.1887546,158.05,158.0,16.92]
[1721104389920,1.2687546,158.05,158.0,16.92]
[1721104390117,16.92,158.05,158.0,16.92]
[1721104390324,1.2687546,158.04,158.0,16.92]
[1721104390618,1.2687546,158.07,158.01,16.92]
[1721104390821,16.92,158.06,158.01,16.92]
[1721104391002,1.2687546,158.05,158.01,16.92]
[1721104391919,1.2687546,158.04,157.99,45.0]
[1721104392096,32.0941,158.05,157.98,14.46721523]
[1721104392415,32.0941,158.05,158.0,16.92]
[1721104393200,1.2687546,158.04,158.0,16.92]
[1721104393896,1.2687546,158.04,157.98,8.42815603]
[1721104394104,15.1741,158.05,158.01,16.92]
[1721104394312,1.2687546,158.05,158.01,16.92]
[1721104394520,16.92,158.06,158.02,16.92]
[1721104394521,1.2687546,158.06,158.02,16.92]
[1721104395196,1.2687546,158.08,157.98,27.43815603]
[1721104395424,1.2687546,158.08,158.04,16.92]
[1721104395922,1.2687546,158.07,158.04,16.92]
[1721104396126,16.92,158.08,158.03,16.92]
[1721104397104,1.2687546,158.07,158.03,16.92]
[1721104397423,1.2687546,158.08,158.04,17.96765987]
[1721104397798,15.1741,158.09,158.04,1.04765987]
[1721104397994,18.1887546,158.11,158.06,16.92]
[1721104398200,18.1887546,158.1,158.05,16.92]
[1721104398417,18.1887546,158.1,158.06,45.0]
[1721104398619,16.92,158.09,158.0,82.7535]
[1721104398822,1.2687546,158.08,158.04,16.92]
[1721104399024,1.2687546,158.08,158.05,45.0]
[1721104399323,1.2687546,158.08,158.0,23.50165603]
[1721104399507,1.2687546,158.08,158.04,16.92]
[1721104399908,18.1887546,158.08,158.03,16.92]
[1721104400106,18.1887546,158.08,158.04,45.0]
[1721104400635,18.1887546,158.08,158.03,16.92]
[1721104400806,18.1887546,158.08,158.0,23.50165603]
[1721104401008,1.2687546,158.08,158.03,16.92]
[1721104401238,16.92,158.09,158.01,45.0]
[1721104401407,1.2687546,158.1,158.01,72.43815603]
[1721104401728,16.92,158.11,158.06,16.92]
[1721104401941,16.92,158.11,158.07,45.0]
[1721104403218,24.2942546,158.12,158.07,62.87709584]
[1721104403424,34.6557546,158.13,158.09,16.92]
[1721104404127,17.7357546,158.13,158.09,16.92]
[1721104404631,6.2572,158.16,158.11,16.92]
[1721104404929,6.2572,158.16,158.12,16.92]
[1721104405136,7.5259546,158.16,158.12,16.92]
[1721104405425,24.4459546,158.16,158.11,16.92]
[1721104405611,17.7357546,158.22,158.12,64.01]
[1721104405812,33.3614546,158.26,158.15,19.01]
[1721104406026,33.3614546,158.26,158.16,54.02482272]
[1721104406027,16.4414546,158.26,158.16,54.02482272]
[1721104406229,16.4414546,158.26,158.22,16.92]
[1721104406727,100.13751408,179.35,158.16,80.57922327]
[1721104406728,15.1727,158.3,158.16,80.57922327]
[1721104407031,1.2687546,158.29,158.26,16.92]
[1721104407806,1.2687546,158.29,158.25,16.92]
[1721104408236,1.2687546,158.29,158.27,16.92]
[1721104408531,1.2687546,158.29,158.26,16.92]
[1721104408908,1.2687546,158.29,158.19,0.97134399]
[1721104409240,1.2687546,158.29,158.19,84.01]
[1721104409410,1.2687546,158.29,158.25,16.92]
[1721104411531,1.2687546,158.29,158.26,16.92]
[1721104412140,1.2687546,158.29,158.19,84.01]
[1721104412435,1.2687546,158.29,158.25,16.92]
[1721104413343,1.2687546,158.29,158.26,16.92]
[1721104414439,1.2687546,158.29,158.19,84.01]
[1721104414621,1.2687546,158.29,158.26,16.92]
[1721104415537,1.2687546,158.29,158.2,1.26370384]
[1721104415743,1.2687546,158.29,158.26,16.92]
[1721104416929,1.2687546,158.29,158.27,16.92]
[1721104421133,18.1887546,158.29,158.19,99.60769503]
[1721104421516,1.2687546,158.29,158.25,16.92]
[1721104422017,1.2687546,158.29,158.26,16.92]
[1721104423642,1.2687546,158.29,158.19,99.60769503]
[1721104423839,1.2687546,158.29,158.15,35.0467]
[1721104424039,16.92,158.25,158.2,16.92]
[1721104424345,1.2687546,158.24,158.2,16.92]
[1721104425245,1.2687546,158.24,158.21,16.92]
[1721104425734,1.2687546,158.28,158.23,16.92]
[1721104425935,1.2687546,158.28,158.24,16.92]
[1721104426329,1.2687546,158.28,158.26,16.92]
[1721104427446,1.2687546,158.28,158.25,16.92]
[1721104427645,1.2687546,158.29,158.27,16.92]
[1721104428338,16.4414546,158.3,158.21,52.79]
[1721104428649,16.4414546,158.3,158.22,65.0]
[1721104429928,16.4414546,158.3,158.22,84.01]
[1721104430148,15.1727,158.3,158.22,84.01]
[1721104431331,1.2687546,158.33,158.24,33.78]
[1721104431535,1.2687546,158.33,158.25,65.0]
[1721104432553,6.3171,158.3,158.21,16.4669]
[1721104432732,6.3171,158.3,158.2,39.8305]
[1721104432733,1.2687546,158.29,158.2,39.8305]
[1721104433825,7.5858546,158.3,158.2,39.8305]
[1721104434025,1.2687546,158.29,158.21,65.0]
[1721104434634,16.6585,158.28,158.19,8.42815603]
[1721104434838,1.2687546,158.27,158.17,34.2581]
[1721104435038,1.2687546,158.27,158.17,15.2481]
[1721104435347,1.2687546,158.27,158.16,40.401]
[1721104435534,27.5872546,158.27,158.16,33.78]
[1721104435732,21.2687546,158.27,158.16,33.78]
[1721104435947,6.3195,158.24,158.15,8.42815603]
[1721104436148,1.2687546,158.23,158.13,40.35675875]
[1721104436474,1.2687546,158.23,158.13,33.78]
[1721104436623,1.2687546,158.23,158.13,40.35540215]
[1721104436829,1.2687546,158.23,158.13,59.36540215]
[1721104437057,1.2687546,158.22,158.13,59.36540215]
[1721104437264,1.2687546,158.24,158.13,59.36540215]
[1721104438056,1.2687546,158.24,158.14,45.0]
[1721104438255,7.5874546,158.26,158.14,45.0]
[1721104438551,20.0,158.25,158.14,45.0]
[1721104438730,1.2687546,158.24,158.14,45.0]
[1721104438931,1.2687546,158.23,158.14,45.0]
[1721104439151,1.2687546,158.23,158.15,20.0]
[1721104439353,1.2687546,158.23,158.16,45.0]
[1721104439647,16.6052,158.22,158.16,45.0]
[1721104439862,1.2687546,158.21,158.16,45.0]
[1721104440046,1.2687546,158.21,158.15,20.0]
[1721104440347,16.6052,158.22,158.14,20.0]
[1721104441553,16.6052,158.22,158.15,46.26423746]
[1721104441751,16.6052,158.22,158.16,20.0]
[1721104441950,16.6052,158.22,158.17,1.2640776]
[1721104442158,16.6052,158.22,158.17,45.0]
[1721104443259,1.2687546,158.24,158.17,45.0]
[1721104443430,16.1261,158.26,158.18,20.0]
[1721104443639,1.2687546,158.25,158.19,46.00728256]
[1721104445155,1.2687546,158.25,158.13,32.75494115]
[1721104445541,1.2687546,158.25,158.14,20.0]
[1721104445745,1.2687546,158.25,158.15,1.00753732]
[1721104445946,7.5879546,158.25,158.15,1.00753732]
[1721104446557,1.2687546,158.25,158.15,1.00753732]
[1721104446863,1.2687546,158.25,158.15,46.00753732]
[1721104447064,1.2687546,158.25,158.16,20.0]
[1721104447238,1.2687546,158.25,158.17,46.00740992]
[1721104447239,7.5878546,158.25,158.17,46.00740992]
[1721104448235,1.2687546,158.25,158.17,46.00740992]
[1721104448960,7.5879546,158.25,158.17,46.00740992]
[1721104449661,7.5879546,158.25,158.17,45.0]
[1721104451352,1.2687546,158.25,158.17,45.0]
[1721104451968,1.2687546,158.25,158.18,0.53242531]
[1721104452144,1.2687546,158.25,158.17,45.0]
[1721104452845,6.594,158.24,158.17,45.0]
[1721104453159,1.2687546,158.23,158.17,45.0]
[1721104453355,1.2687546,158.23,158.14,6.57091944]
[1721104453356,16.0654,158.22,158.14,6.57091944]
[1721104453555,1.2687546,158.21,158.14,6.57091944]
[1721104454267,7.5894546,158.21,158.14,6.57091944]
[1721104454761,1.2687546,158.21,158.14,6.57091944]
[1721104456657,22.4317,158.19,158.14,6.57091944]
[1721104456857,1.2687546,158.18,158.14,6.57091944]
[1721104457062,21.2687546,158.18,158.06,33.78]
[1721104457360,21.2687546,158.18,158.07,6.57641059]
[1721104457772,6.3231,158.15,158.07,6.57641059]
[1721104457956,1.2687546,158.14,158.04,8.42815603]
[1721104458344,1.2687546,158.14,158.04,15.00574178]
[1721104458764,15.2638,158.12,158.04,6.57758575]
[1721104458991,1.2687546,158.11,158.04,6.57758575]
[1721104459157,1.2687546,158.1,158.04,6.57758575]
[1721104459463,1.2687546,158.1,158.03,33.78]
[1721104460259,1.2687546,158.11,158.03,33.78]
[1721104460449,1.2687546,158.11,158.04,20.0]
[1721104460649,1.2687546,158.11,158.04,65.0]
[1721104463265,1.2687546,158.11,158.05,1.26507632]
[1721104463463,15.2638,158.12,158.06,33.78]
[1721104463651,15.2638,158.12,158.07,46.26488621]
[1721104464664,15.2638,158.12,158.07,45.0]
[1721104467270,16.5325546,158.12,158.02,6.03911908]
[1721104467451,6.325,158.11,158.01,40.35870805]
[1721104467649,1.2687546,158.1,158.01,40.35870805]
[1721104468264,1.2687546,158.1,158.01,59.36870805]
[1721104468463,1.2687546,158.1,158.01,40.35870805]
[1721104468766,1.2687546,158.09,158.01,33.78]
[1721104468970,7.5934546,158.11,158.01,33.78]
[1721104469169,6.3252,158.1,158.01,33.78]
[1721104469380,6.3252,158.1,157.99,6.57444586]
[1721104469381,1.2687546,158.09,157.99,6.57444586]
[1721104469557,1.2687546,158.09,157.98,59.959539]
[1721104469877,1.2687546,158.09,157.98,49.979539]
[1721104470347,1.2687546,158.09,157.99,20.0]
[1721104472181,1.2687546,158.08,158.0,45.0]
[1721104472478,7.5938546,158.1,158.01,20.0]
[1721104472656,7.5938546,158.1,158.02,45.0]
[1721104474070,15.9683,158.09,158.02,45.0]
[1721104474296,1.2687546,158.08,158.02,45.0]
[1721104474473,1.2687546,158.07,158.02,45.0]
[1721104474671,1.2687546,158.07,157.98,40.35449026]
[1721104474878,22.0577,158.06,157.95,19.01]
[1721104475173,7.5960546,158.05,157.95,33.78]
[1721104475478,1.2687546,158.05,157.92,49.05627101]
[1721104475779,21.2687546,158.05,157.92,68.06627101]
[1721104476085,21.2687546,158.05,157.92,49.05627101]
[1721104476455,6.3275,158.04,157.92,49.05627101]
[1721104476673,1.2687546,158.03,157.92,49.05627101]
[1721104477055,7.5966546,158.03,157.93,45.0]
[1721104477256,15.537,158.02,157.94,20.0]
[1721104477472,1.2687546,158.01,157.95,45.0]
[1721104484275,6.6095,158.0,157.95,45.0]
[1721104484469,6.6095,158.0,157.94,1.2641901]
[1721104484470,1.2687546,157.99,157.94,45.0]
[1721104484658,1.2687546,157.99,157.92,15.27627101]
[1721104484868,1.2687546,157.99,157.92,0.8089959]
[1721104486961,1.2687546,157.99,157.92,20.8089959]
[1721104487166,1.2687546,157.99,157.93,45.0]
[1721104488861,1.2687546,157.99,157.94,1.13277365]
[1721104490391,1.2687546,157.99,157.97,16.95]
[1721104491087,1.2687546,157.99,157.94,1.13277365]
[1721104491470,1.2687546,157.99,157.96,16.95]
[1721104491789,7.8782546,158.0,157.98,16.95]
[1721104492290,7.8782546,158.0,157.97,16.95]
[1721104492470,7.8782546,158.0,157.98,45.0]
[1721104492670,7.8782546,158.0,157.93,45.0]
[1721104492671,14.2073546,158.0,157.92,0.8089959]
[1721104492873,14.2073546,158.0,157.97,16.95]
[1721104493171,14.2073546,158.0,157.96,16.95]
[1721104493372,14.4096,157.97,157.88,6.56058453]
[1721104493570,8.2994546,157.96,157.84,83.86638885]
[1721104493766,0.7,157.96,157.95,16.95]
[1721104495473,0.7,157.96,157.95,45.0]
[1721104495673,0.7,157.96,157.95,61.95]
[1721104497588,0.7,157.96,157.95,81.95]
[1721104498496,0.7,157.96,157.95,65.0]
[1721104498800,0.7,157.96,157.95,66.26590756]
[1721104499172,1.2687546,158.01,157.95,66.26590756]
[1721104499474,1.2687546,158.01,157.87,15.7245]
[1721104499694,6.3291,158.0,157.89,33.89]
[1721104499901,6.3289,158.01,157.89,33.89]
[1721104500194,6.3283,158.02,157.92,33.89]
[1721104500492,1.2687546,158.01,157.93,20.27594468]
[1721104500699,1.2687546,158.04,157.93,20.27594468]
[1721104500875,7.5962546,158.04,157.93,20.27594468]
[1721104501077,7.5962546,158.04,157.94,64.01]
[1721104501879,6.3281,158.03,157.94,64.01]
[1721104502078,7.5970546,158.02,157.94,64.01]
[1721104502277,7.5970546,158.02,157.95,20.0]
[1721104502495,7.5970546,158.02,157.96,45.0]
[1721104502871,1.2687546,158.02,157.97,0.8320976]
[1721104503095,1.2687546,158.04,157.97,1.26579071]
[1721104504982,1.2687546,158.04,157.97,21.26579071]
[1721104505187,1.2687546,158.04,157.98,45.0]
[1721104505378,1.2687546,158.04,157.99,21.26563047]
[1721104505579,1.2687546,158.04,158.0,45.0]
[1721104512579,1.2687546,158.06,158.0,45.0]
[1721104512794,1.2687546,158.08,158.01,1.26566825]
[1721104513675,7.5946546,158.08,158.01,1.26566825]
[1721104514111,1.2687546,158.08,158.01,1.26566825]
[1721104514408,1.2687546,158.08,158.01,21.26566825]
[1721104514706,1.2687546,158.08,158.02,45.0]
[1721104514895,1.2687546,158.09,158.03,1.26534416]
[1721104515099,1.2687546,158.11,158.03,21.26534416]
[1721104515277,1.2687546,158.11,158.04,45.0]
[1721104515482,7.5934546,158.11,158.05,1.26526063]
[1721104517904,6.3251,158.1,158.05,1.26526063]
[1721104518914,1.2687546,158.12,158.05,1.26526063]
[1721104519115,1.2687546,158.14,158.05,21.26526063]
[1721104519408,1.2687546,158.16,158.06,64.01]
[1721104520000,1.2687546,158.16,158.07,39.01]
[1721104520277,1.2687546,158.16,158.12,16.92]
[1721104520508,1.2687546,158.16,158.13,16.92]